fUST/lending_fUST_20250615
["ID","MTS","AMOUNT","RATE_DAILY","PERIOD"]
[365824284,1749940236354,-1486.44,0.00021917,4]
[365824285,1749940236363,-554.94,0.00021917,4]
[365824286,1749940236373,-440.0,0.00021917,4]
[365824287,1749940236382,-430.0,0.00021917,4]
[365824288,1749940236392,-460.0,0.00021917,4]
[365824289,1749940236402,-430.0,0.00021917,4]
[365824290,1749940236411,-460.0,0.00021917,4]
[365824291,1749940236421,-460.0,0.00021917,4]
[365824292,1749940236431,-460.0,0.00021917,4]
[365824293,1749940236440,-569.7,0.00021917,4]
[365824294,1749940236450,-460.0,0.00021917,4]
[365824295,1749940236462,-235.62116323,0.00021917,4]
[365824296,1749940236472,-404.14285129,0.00021917,4]
[365824297,1749940236481,-460.0,0.00021917,4]
[365824298,1749940236490,-460.0,0.00021917,4]
[365824299,1749940236500,-300.0,0.00021917,4]
[365824300,1749940236509,-440.0,0.00021917,4]
[365824301,1749940236518,-440.0,0.00021917,4]
[365824302,1749940236528,-440.0,0.00021917,4]
[365824303,1749940236538,-450.85847809,0.00021917,4]
[365824304,1749940236548,-440.0,0.00021917,4]
[365824305,1749940236559,-440.0,0.00021917,4]
[365824306,1749940236571,-401.38863642,0.00021917,4]
[365824307,1749940236581,-450.0,0.00021917,4]
[365824308,1749940236590,-475.48,0.00021917,4]
[365824309,1749940236600,-400.0,0.00021917,4]
[365824310,1749940236611,-430.0,0.00021917,4]
[365824311,1749940236622,-274.47207894,0.00021917,4]
[365824312,1749940236631,-951.16,0.00021917,4]
[365824313,1749940236644,-460.0,0.00021917,4]
[365824314,1749940236654,-400.0,0.00021917,4]
[365824315,1749940236664,-440.0,0.00021917,4]
[365824316,1749940236674,-440.0,0.00021917,4]
[365824317,1749940236683,-460.0,0.00021917,4]
[365824318,1749940236692,-440.0,0.00021917,4]
[365824319,1749940236701,-460.0,0.00021917,4]
[365824320,1749940236711,-178.4201111,0.00021917,4]
[365824321,1749940236720,-440.0,0.00021917,4]
[365824322,1749940236729,-814.19,0.00021917,4]
[365824323,1749940236738,-422.36409094,0.00021917,4]
[365824324,1749940236747,-460.0,0.00021917,4]
[365824325,1749940236756,-450.0,0.00021917,4]
[365824326,1749940236765,-450.0,0.00021917,4]
[365824327,1749940236775,-440.0,0.00021917,4]
[365824328,1749940236784,-1064.68,0.00021917,4]
[365824329,1749940236793,-400.0,0.00021917,4]
[365824330,1749940236802,-460.0,0.00021917,4]
[365824331,1749940236811,-440.0,0.00021917,4]
[365824332,1749940236820,-460.0,0.00021917,4]
[365824333,1749940236830,-452.04537542,0.00021917,4]
[365824334,1749940236839,-460.0,0.00021917,4]
[365824335,1749940236848,-460.0,0.00021917,4]
[365824336,1749940236857,-430.0,0.00021917,4]
[365824337,1749940236867,-440.0,0.00021917,4]
[365824338,1749940236876,-460.0,0.00021917,4]
[365824339,1749940236885,-3239.66,0.00021917,4]
[365824340,1749940236894,-440.0,0.00021917,4]
[365824341,1749940236903,-460.0,0.00021917,4]
[365824342,1749940236913,-460.0,0.00021917,4]
[365824343,1749940236921,-460.0,0.00021917,4]
[365824344,1749940236931,-460.0,0.00021917,4]
[365824345,1749940236940,-440.0,0.00021917,4]
[365824346,1749940236949,-460.0,0.00021917,4]
[365824347,1749940236958,-460.0,0.00021917,4]
[365824348,1749940236968,-430.0,0.00021917,4]
[365824349,1749940236977,-2638.52,0.00021917,4]
[365824350,1749940236986,-207.65,0.00021917,4]
[365824351,1749940236996,-440.0,0.00021917,4]
[365824352,1749940237005,-450.0,0.00021917,4]
[365824353,1749940237014,-1131.67,0.00021917,4]
[365824354,1749940237023,-460.0,0.00021917,4]
[365824355,1749940237032,-889.6,0.00021917,4]
[365824356,1749940237041,-460.0,0.00021917,4]
[365824357,1749940237050,-460.0,0.00021917,4]
[365824358,1749940237059,-450.0,0.00021917,4]
[365824359,1749940237069,-440.0,0.00021917,4]
[365824360,1749940237078,-590.53613233,0.00021917,4]
[365824361,1749940237087,-460.0,0.00021917,4]
[365824362,1749940237099,-1112.04,0.00021917,4]
[365824363,1749940237109,-460.0,0.00021917,4]
[365824364,1749940237118,-440.0,0.00021917,4]
[365824365,1749940237128,-1000.0,0.00021917,4]
[365824366,1749940237137,-327.33540601,0.00021917,4]
[365824367,1749940237147,-460.0,0.00021917,4]
[365824368,1749940237157,-430.0,0.00021917,4]
[365824369,1749940237166,-450.0,0.00021917,4]
[365824370,1749940237175,-757.22,0.00021917,4]
[365824371,1749940237185,-420.0,0.00021917,4]
[365824372,1749940237194,-460.0,0.00021917,4]
[365824373,1749940237204,-430.0,0.00021917,4]
[365824374,1749940237215,-3409.97,0.00021917,4]
[365824375,1749940237224,-440.0,0.00021917,4]
[365824376,1749940237233,-4285.18,0.00021917,4]
[365824377,1749940237242,-450.0,0.00021917,4]
[365824378,1749940237251,-917.06,0.00021917,4]
[365824379,1749940237260,-450.0,0.00021917,4]
[365824380,1749940237270,-440.0,0.00021917,4]
[365824381,1749940237279,-460.0,0.00021917,4]
[365824382,1749940237289,-460.0,0.00021917,4]
[365824383,1749940237299,-460.0,0.00021917,4]
[365824384,1749940237308,-910.17,0.00021917,4]
[365824385,1749940237318,-460.0,0.00021917,4]
[365824386,1749940237327,-460.0,0.00021917,4]
[365824387,1749940237337,-460.0,0.00021917,4]
[365824388,1749940237346,-430.0,0.00021917,4]
[365824389,1749940237355,-585.96,0.00021917,4]
[365824390,1749940237365,-460.0,0.00021917,4]
[365824391,1749940237375,-460.0,0.00021917,4]
[365824392,1749940237384,-460.0,0.00021917,4]
[365824393,1749940237393,-460.0,0.00021917,4]
[365824394,1749940237403,-440.0,0.00021917,4]
[365824395,1749940237413,-450.0,0.00021917,4]
[365824396,1749940237422,-460.0,0.00021917,4]
[365824397,1749940237431,-460.0,0.00021917,4]
[365824398,1749940237441,-3599.81,0.00021917,4]
[365824399,1749940237450,-440.0,0.00021917,4]
[365824400,1749940237459,-460.0,0.00021917,4]
[365824401,1749940237471,-460.0,0.00021917,4]
[365824402,1749940237480,-599.29,0.00021917,4]
[365824403,1749940237490,-523.41,0.00021917,4]
[365824404,1749940237499,-460.0,0.00021917,4]
[365824405,1749940237508,-460.0,0.00021917,4]
[365824406,1749940237518,-460.0,0.00021917,4]
[365824407,1749940237527,-535.98886449,0.00021917,4]
[365824408,1749940237537,-460.0,0.00021917,4]
[365824409,1749940237546,-4054.47,0.00021917,4]
[365824410,1749940237556,-440.0,0.00021917,4]
[365824411,1749940237576,-600.12,0.00021917,4]
[365824412,1749940237591,-440.0,0.00021917,4]
[365824413,1749940237600,-440.0,0.00021917,4]
[365824414,1749940237610,-1598.91,0.00021917,4]
[365824415,1749940237620,-440.0,0.00021917,4]
[365824416,1749940237629,-460.0,0.00021917,4]
[365824417,1749940237639,-889.57,0.00021917,4]
[365824418,1749940237648,-460.0,0.00021917,4]
[365824419,1749940237658,-460.0,0.00021917,4]
[365824420,1749940237667,-440.0,0.00021917,4]
[365824421,1749940237676,-440.0,0.00021917,4]
[365824422,1749940237686,-356.99,0.00021917,4]
[365824423,1749940237695,-1544.86,0.00021917,4]
[365824424,1749940237704,-460.0,0.00021917,2]
[365824425,1749940237714,-440.0,0.00021917,4]
[365824426,1749940237723,-460.0,0.00021917,4]
[365824427,1749940237733,-460.0,0.00021917,4]
[365824428,1749940237742,-430.0,0.00021917,4]
[365824429,1749940237751,-460.0,0.00021917,4]
[365824430,1749940237760,-460.0,0.00021917,4]
[365824431,1749940237769,-460.0,0.00021917,4]
[365824432,1749940237779,-424.96500573,0.00021917,4]
[365824433,1749940237788,-440.0,0.00021917,4]
[365824434,1749940237798,-460.0,0.00021917,4]
[365824435,1749940237807,-315.53511976,0.00021917,4]
[365824436,1749940237816,-440.0,0.00021917,4]
[365824437,1749940237826,-460.0,0.00021917,4]
[365824438,1749940237836,-2823.63,0.00021917,4]
[365824439,1749940237844,-460.0,0.00021917,4]
[365824440,1749940237854,-745.7,0.00021917,4]
[365824441,1749940237863,-460.0,0.00021917,4]
[365824442,1749940237872,-440.0,0.00021917,4]
[365824443,1749940237882,-460.0,0.00021917,4]
[365824444,1749940237891,-470.0,0.00021917,4]
[365824445,1749940237901,-440.0,0.00021917,4]
[365824446,1749940237911,-2032.65,0.00021917,4]
[365824447,1749940237920,-460.0,0.00021917,4]
[365824448,1749940237930,-490.0,0.00021917,4]
[365824449,1749940237939,-460.0,0.00021917,4]
[365824450,1749940237948,-460.0,0.00021917,4]
[365824451,1749940237957,-460.0,0.00021917,4]
[365824452,1749940237971,-440.0,0.00021917,4]
[365824453,1749940237981,-460.0,0.00021917,4]
[365824454,1749940237990,-422.45864993,0.00021958,2]
[365824455,1749940237999,-500.0,0.00021973,2]
[365824456,1749940238008,-462.28280322,0.00021973,2]
[365824457,1749940238018,-951.72615265,0.00022003,6]
[365824458,1749940238027,-951.72615265,0.00022107,6]
[365824459,1749940238036,-500.0,0.00022173,2]
[365824460,1749940238045,-500.0,0.00022173,2]
[365824461,1749940238055,-500.0,0.00022173,2]
[365824462,1749940238065,-420.0,0.00022191,4]
[365824463,1749940238075,-420.0,0.00022191,4]
[365824464,1749940238085,-420.0,0.00022191,4]
[365824465,1749940238095,-420.0,0.00022191,4]
[365824466,1749940238105,-462.50481095,0.00022191,4]
[365824467,1749940238115,-420.0,0.00022191,4]
[365824468,1749940238125,-246.52594672,0.00022191,4]
[365824469,1749940238135,-151.87336705,0.00022191,4]
[365824470,1749940238145,-440.0,0.00022191,4]
[365824471,1749940238154,-420.0,0.00022191,4]
[365824472,1749940238164,-420.0,0.00022191,4]
[365824473,1749940238174,-420.0,0.00022191,4]
[365824474,1749940238188,-420.0,0.00022191,4]
[365824475,1749940238198,-400.0,0.00022191,4]
[365824476,1749940238207,-420.0,0.00022191,4]
[365824478,1749940238222,-420.0,0.00022191,4]
[365824480,1749940238231,-400.0,0.00022191,4]
[365824481,1749940238241,-460.0,0.00022191,4]
[365824482,1749940238251,-440.0,0.00022191,4]
[365824483,1749940238260,-430.0,0.00022191,4]
[365824484,1749940238269,-460.0,0.00022191,4]
[365824485,1749940238279,-460.0,0.00022191,4]
[365824487,1749940238289,-869.2,0.00022191,4]
[365824489,1749940238298,-400.0,0.00022191,4]
[365824491,1749940238311,-607.26,0.00022191,4]
[365824492,1749940238320,-590.32158357,0.00022191,4]
[365824493,1749940238330,-460.0,0.00022191,4]
[365824494,1749940238340,-460.0,0.00022191,4]
[365824495,1749940238350,-460.0,0.00022191,4]
[365824496,1749940238359,-460.0,0.00022191,4]
[365824498,1749940238368,-460.0,0.00022191,4]
[365824499,1749940238378,-460.0,0.00022191,4]
[365824501,1749940238388,-240.0,0.00022191,4]
[365824502,1749940238398,-460.0,0.00022191,4]
[365824503,1749940238408,-460.0,0.00022191,4]
[365824504,1749940238418,-460.0,0.00022191,4]
[365824505,1749940238428,-1218.26,0.00022191,4]
[365824511,1749940238562,-420.0,0.00022191,4]
[365824513,1749940238573,-460.0,0.00022191,4]
[365824516,1749940238583,-460.0,0.00022191,4]
[365824517,1749940238592,-460.0,0.00022191,4]
[365824520,1749940238602,-420.0,0.00022191,4]
[365824522,1749940238613,-569.55,0.00022191,4]
[365824523,1749940238623,-460.0,0.00022191,4]
[365824525,1749940238633,-270.0,0.00022191,4]
[365824527,1749940238642,-460.0,0.00022191,4]
[365824529,1749940238652,-370.0,0.00022191,4]
[365824530,1749940238662,-460.0,0.00022191,4]
[365824531,1749940238671,-460.0,0.00022191,4]
[365824532,1749940238680,-460.0,0.00022191,4]
[365824533,1749940238690,-459.89200613,0.00022191,4]
[365824534,1749940238700,-460.0,0.00022191,4]
[365824535,1749940238709,-460.0,0.00022191,4]
[365824536,1749940238720,-1564.24,0.00022191,4]
[365824537,1749940238729,-530.78,0.00022191,4]
[365824538,1749940238739,-380.0,0.00022191,4]
[365824539,1749940238749,-440.0,0.00022191,4]
[365824540,1749940238759,-460.0,0.00022191,4]
[365824541,1749940238768,-1151.53,0.00022191,4]
[365824542,1749940238777,-306.94941051,0.00022191,4]
[365824543,1749940238787,-380.0,0.00022191,4]
[365824544,1749940238796,-460.0,0.00022191,4]
[365824545,1749940238806,-460.0,0.00022191,4]
[365824546,1749940238815,-1230.06,0.00022191,4]
[365824547,1749940238825,-1250.89,0.00022191,4]
[365824548,1749940238834,-460.0,0.00022191,4]
[365824549,1749940238844,-460.0,0.00022191,4]
[365824550,1749940238853,-420.0,0.00022191,4]
[365824551,1749940238862,-486.12,0.00022191,4]
[365824552,1749940238871,-3425.3,0.00022191,4]
[365824553,1749940238880,-460.0,0.00022191,4]
[365824554,1749940238889,-460.0,0.00022191,4]
[365824555,1749940238898,-460.0,0.00022191,4]
[365824556,1749940238908,-1486.44,0.00022191,4]
[365824557,1749940238917,-554.94,0.00022191,4]
[365824558,1749940238927,-420.0,0.00022191,4]
[365824559,1749940238936,-420.0,0.00022191,4]
[365824560,1749940238945,-460.0,0.00022191,4]
[365824561,1749940238955,-420.0,0.00022191,4]
[365824562,1749940238965,-569.7,0.00022191,4]
[365824563,1749940238975,-580.0,0.00022191,4]
[365824564,1749940238984,-460.0,0.00022191,4]
[365824565,1749940238993,-460.0,0.00022191,4]
[365824566,1749940239003,-475.48,0.00022191,4]
[365824567,1749940239012,-951.16,0.00022191,4]
[365824568,1749940239022,-400.0,0.00022191,4]
[365824569,1749940239031,-400.0,0.00022191,4]
[365824570,1749940239040,-410.0,0.00022191,4]
[365824571,1749940239050,-814.19,0.00022191,4]
[365824572,1749940239060,-460.0,0.00022191,4]
[365824573,1749940239070,-1064.68,0.00022191,4]
[365824574,1749940239080,-420.0,0.00022191,4]
[365824575,1749940239089,-460.0,0.00022191,4]
[365824576,1749940239099,-420.0,0.00022191,4]
[365824577,1749940239108,-420.0,0.00022191,4]
[365824578,1749940239117,-460.0,0.00022191,4]
[365824579,1749940239127,-3239.66,0.00022191,4]
[365824580,1749940239136,-460.0,0.00022191,4]
[365824581,1749940239146,-460.0,0.00022191,4]
[365824582,1749940239156,-420.0,0.00022191,4]
[365824583,1749940239166,-440.0,0.00022191,4]
[365824584,1749940239176,-420.0,0.00022191,4]
[365824585,1749940239185,-460.0,0.00022191,4]
[365824586,1749940239195,-2638.52,0.00022191,4]
[365824587,1749940239204,-1131.67,0.00022191,4]
[365824588,1749940239215,-440.0,0.00022191,4]
[365824589,1749940239225,-889.6,0.00022191,4]
[365824590,1749940239234,-420.0,0.00022191,4]
[365824591,1749940239244,-460.0,0.00022191,4]
[365824592,1749940239253,-460.0,0.00022191,4]
[365824593,1749940239263,-460.0,0.00022191,4]
[365824594,1749940239272,-1112.04,0.00022191,4]
[365824595,1749940239282,-1140.85627546,0.00022191,4]
[365824596,1749940239292,-460.0,0.00022191,4]
[365824597,1749940239302,-757.22,0.00022191,4]
[365824598,1749940239312,-198.16306545,0.00022191,4]
[365824599,1749940239321,-3409.97,0.00022191,4]
[365824600,1749940239330,-4285.18,0.00022191,4]
[365824601,1749940239340,-917.06,0.00022191,4]
[365824602,1749940239349,-460.0,0.00022191,4]
[365824603,1749940239359,-440.0,0.00022191,4]
[365824604,1749940239368,-420.0,0.00022191,4]
[365824605,1749940239378,-910.17,0.00022191,4]
[365824606,1749940239388,-460.0,0.00022191,4]
[365824607,1749940239399,-121.7876978,0.00022191,4]
[365824608,1749940239742,-338.2123022,0.00022191,4]
[365824609,1749940239752,-420.0,0.00022191,4]
[365824610,1749940239761,-585.96,0.00022191,4]
[365824611,1749940239771,-420.0,0.00022191,4]
[365824612,1749940239779,-420.0,0.00022191,4]
[365824613,1749940239789,-420.0,0.00022191,4]
[365824614,1749940239798,-420.0,0.00022191,4]
[365824615,1749940239807,-420.0,0.00022191,4]
[365824616,1749940239817,-3599.81,0.00022191,4]
[365824617,1749940239827,-460.0,0.00022191,4]
[365824618,1749940239837,-460.0,0.00022191,4]
[365824619,1749940239847,-420.0,0.00022191,4]
[365824620,1749940239856,-300.75605748,0.00022191,4]
[365824621,1749940239868,-298.53394252,0.00022191,4]
[365824622,1749940239878,-264.75375198,0.00022191,4]
[365824623,1749940239890,-258.65624802,0.00022191,4]
[365824624,1749940239900,-460.0,0.00022191,4]
[365824625,1749940239909,-382.72350298,0.00022191,4]
[365824626,1749940239925,-77.27649702,0.00022191,4]
[365824627,1749940239934,-302.28529561,0.00022191,4]
[365824628,1749940239943,-230.0,0.00022191,4]
[365824629,1749940239952,-4054.47,0.00022191,4]
[365824630,1749940239962,-600.12,0.00022191,4]
[365824631,1749940239972,-1598.91,0.00022191,4]
[365824632,1749940239981,-230.0,0.00022191,4]
[365824633,1749940239991,-889.57,0.00022191,4]
[365824634,1749940240000,-159.57314598,0.00022191,4]
[365824635,1749940240010,-460.0,0.00022191,4]
[365824636,1749940240019,-1544.86,0.00022191,4]
[365824637,1749940240028,-460.0,0.00022191,2]
[365824638,1749940240038,-420.0,0.00022191,4]
[365824639,1749940240048,-460.0,0.00022191,4]
[365824640,1749940240061,-460.0,0.00022191,4]
[365824641,1749940240073,-460.0,0.00022191,4]
[365824642,1749940240083,-460.0,0.00022191,4]
[365824643,1749940240092,-460.0,0.00022191,4]
[365824644,1749940240102,-420.0,0.00022191,4]
[365824645,1749940240111,-2823.63,0.00022191,4]
[365824646,1749940240121,-420.0,0.00022191,4]
[365824647,1749940240130,-745.7,0.00022191,4]
[365824648,1749940240140,-420.0,0.00022191,4]
[365824649,1749940240149,-2032.65,0.00022191,4]
[365824650,1749940240159,-420.0,0.00022191,4]
[365824651,1749940240168,-460.0,0.00022191,4]
[365824652,1749940240177,-420.0,0.00022191,4]
[365824653,1749940240187,-460.0,0.00022191,4]
[365824654,1749940240196,-460.0,0.00022191,4]
[365824655,1749940240205,-951.72615265,0.0002221,6]
[365824656,1749940240217,-182.017611,0.00022214,2]
[365824657,1749940240226,-176.85789988,0.00022257,2]
[365824658,1749940240236,-951.72615265,0.00022314,7]
[365824659,1749940240246,-951.72615265,0.00022417,7]
[365824660,1749940240256,-460.0,0.00022465,4]
[365824661,1749940240266,-224.09604239,0.00022465,4]
[365824662,1749940240276,-869.2,0.00022465,4]
[365824663,1749940240285,-607.26,0.00022465,4]
[365824664,1749940240295,-290.0,0.00022465,4]
[365824665,1749940240305,-460.0,0.00022465,4]
[365824666,1749940240315,-460.0,0.00022465,4]
[365824667,1749940240324,-460.0,0.00022465,4]
[365824668,1749940240333,-460.0,0.00022465,4]
[365824669,1749940240343,-389.30674547,0.00022465,4]
[365824670,1749940240353,-460.0,0.00022465,4]
[365824671,1749940240362,-460.0,0.00022465,4]
[365824672,1749940240371,-460.0,0.00022465,4]
[365824673,1749940240380,-1218.26,0.00022465,4]
[365824675,1749940240391,-460.0,0.00022465,4]
[365824677,1749940240400,-460.0,0.00022465,4]
[365824679,1749940240410,-460.0,0.00022465,4]
[365824681,1749940240420,-569.55,0.00022465,4]
[365824683,1749940240429,-460.0,0.00022465,4]
[365824684,1749940240439,-460.0,0.00022465,4]
[365824685,1749940240448,-460.0,0.00022465,4]
[365824686,1749940240457,-460.0,0.00022465,4]
[365824687,1749940240467,-380.0,0.00022465,4]
[365824688,1749940240477,-460.0,0.00022465,4]
[365824689,1749940240486,-460.0,0.00022465,4]
[365824690,1749940240495,-530.78,0.00022465,4]
[365824691,1749940240504,-460.0,0.00022465,4]
[365824692,1749940240514,-1151.53,0.00022465,4]
[365824693,1749940240523,-460.0,0.00022465,4]
[365824694,1749940240532,-380.0,0.00022465,4]
[365824695,1749940240541,-1230.06,0.00022465,4]
[365824696,1749940240550,-1250.89,0.00022465,4]
[365824697,1749940240561,-400.0,0.00022465,4]
[365824698,1749940240572,-460.0,0.00022465,4]
[365824699,1749940240581,-486.12,0.00022465,4]
[365824700,1749940240590,-3425.3,0.00022465,4]
[365824701,1749940240599,-460.0,0.00022465,4]
[365824702,1749940240609,-460.0,0.00022465,4]
[365824703,1749940240618,-460.0,0.00022465,4]
[365824704,1749940240627,-1486.44,0.00022465,4]
[365824705,1749940240637,-554.94,0.00022465,4]
[365824706,1749940240645,-460.0,0.00022465,4]
[365824707,1749940240654,-569.7,0.00022465,4]
[365824708,1749940240663,-460.0,0.00022465,4]
[365824709,1749940240672,-300.0,0.00022465,4]
[365824710,1749940240681,-475.48,0.00022465,4]
[365824711,1749940240690,-951.16,0.00022465,4]
[365824712,1749940240699,-814.19,0.00022465,4]
[365824713,1749940240708,-460.0,0.00022465,4]
[365824714,1749940240717,-1064.68,0.00022465,4]
[365824715,1749940240726,-460.0,0.00022465,4]
[365824716,1749940240735,-460.0,0.00022465,4]
[365824717,1749940240745,-3239.66,0.00022465,4]
[365824718,1749940240754,-319.06232774,0.00022465,4]
[365824719,1749940240763,-460.0,0.00022465,4]
[365824720,1749940240772,-460.0,0.00022465,4]
[365824721,1749940240781,-2638.52,0.00022465,4]
[365824723,1749940240791,-1131.67,0.00022465,4]
[365824725,1749940240801,-889.6,0.00022465,4]
[365824727,1749940240810,-460.0,0.00022465,4]
[365824729,1749940240820,-460.0,0.00022465,4]
[365824731,1749940240829,-460.0,0.00022465,4]
[365824732,1749940240838,-1112.04,0.00022465,4]
[365824733,1749940240848,-460.0,0.00022465,4]
[365824734,1749940240858,-757.22,0.00022465,4]
[365824735,1749940240867,-3409.97,0.00022465,4]
[365824736,1749940240876,-4285.18,0.00022465,4]
[365824737,1749940240886,-917.06,0.00022465,4]
[365824738,1749940240896,-460.0,0.00022465,4]
[365824739,1749940240905,-910.17,0.00022465,4]
[365824740,1749940240914,-255.59931388,0.00022465,4]
[365824741,1749940240923,-460.0,0.00022465,4]
[365824742,1749940240932,-585.96,0.00022465,4]
[365824743,1749940240941,-3599.81,0.00022465,4]
[365824744,1749940240951,-320.0,0.00022465,4]
[365824745,1749940240960,-460.0,0.00022465,4]
[365824746,1749940240970,-599.29,0.00022465,4]
[365824747,1749940240980,-523.41,0.00022465,4]
[365824748,1749940240989,-460.0,0.00022465,4]
[365824749,1749940240998,-190.0,0.00022465,4]
[365824750,1749940241007,-4054.47,0.00022465,4]
[365824751,1749940241017,-1598.91,0.00022465,4]
[365824752,1749940241026,-600.12,0.00022465,4]
[365824753,1749940241035,-889.57,0.00022465,4]
[365824754,1749940241044,-460.0,0.00022465,4]
[365824755,1749940241053,-1544.86,0.00022465,4]
[365824756,1749940241063,-460.0,0.00022465,2]
[365824757,1749940241073,-460.0,0.00022465,4]
[365824758,1749940241083,-460.0,0.00022465,4]
[365824759,1749940241093,-460.0,0.00022465,4]
[365824760,1749940241102,-2823.63,0.00022465,4]
[365824761,1749940241112,-745.7,0.00022465,4]
[365824762,1749940241122,-2032.65,0.00022465,4]
[365824763,1749940241131,-460.0,0.00022465,4]
[365824764,1749940241141,-367.60761814,0.00022465,4]
[365824765,1749940241151,-180.0,0.00022465,4]
[365824766,1749940241161,-168.0,0.00022466,2]
[365824767,1749940241171,-1000.0,0.00022521,2]
[365824768,1749940241181,-951.72615265,0.00022521,7]
[365824769,1749940241190,-232.9049283,0.00022604,2]
[365824770,1749940241200,-951.72615265,0.00022624,7]
[365824771,1749940241210,-160.0,0.00022665,2]
[365824772,1749940241220,-845.10789306,0.00022693,2]
[365824773,1749940241230,-424.40141186,0.00022693,2]
[365824774,1749940241240,-160.0,0.00022693,2]
[365824775,1749940241249,-176.85789988,0.00022697,2]
[365824776,1749940241259,-160.0,0.00022699,2]
[365824780,1749940241387,-160.0,0.00022699,2]
[365824782,1749940241397,-6000.00144797,0.000227,2]
[365824783,1749940241406,-184.21194098,0.00022721,2]
[365824784,1749940241415,-951.72615265,0.00022728,7]
[365824785,1749940241425,-1688.0,0.00022732,2]
[365824786,1749940241434,-5000.0,0.00022732,2]
[365824787,1749940241443,-500.0,0.00022732,2]
[365824788,1749940241452,-500.0,0.00022732,2]
[365824789,1749940241462,-500.0,0.00022732,2]
[365824790,1749940241472,-500.0,0.00022732,2]
[365824791,1749940241481,-500.0,0.00022732,2]
[365824792,1749940241490,-500.0,0.00022732,2]
[365824793,1749940241499,-500.0,0.00022732,2]
[365824794,1749940241509,-500.0,0.00022732,2]
[365824795,1749940241518,-500.0,0.00022732,2]
[365824796,1749940241527,-500.0,0.00022732,2]
[365824797,1749940241536,-500.0,0.00022732,2]
[365824798,1749940241546,-500.0,0.00022732,2]
[365824799,1749940241555,-500.0,0.00022732,2]
[365824800,1749940241567,-500.0,0.00022732,2]
[365824801,1749940241576,-500.0,0.00022732,2]
[365824802,1749940241585,-207.4,0.00022732,2]
[365824803,1749940241594,-460.0,0.00022739,4]
[365824804,1749940241605,-869.2,0.00022739,4]
[365824805,1749940241614,-607.26,0.00022739,4]
[365824806,1749940241623,-460.0,0.00022739,4]
[365824807,1749940241632,-460.0,0.00022739,4]
[365824808,1749940241643,-460.0,0.00022739,4]
[365824809,1749940241652,-460.0,0.00022739,4]
[365824810,1749940241661,-460.0,0.00022739,4]
[365824811,1749940241671,-460.0,0.00022739,4]
[365824812,1749940241680,-440.0,0.00022739,4]
[365824813,1749940241689,-1218.26,0.00022739,4]
[365824814,1749940241698,-460.0,0.00022739,4]
[365824815,1749940241707,-180.0,0.00022739,4]
[365824816,1749940241716,-460.0,0.00022739,4]
[365824817,1749940241726,-569.55,0.00022739,4]
[365824818,1749940241735,-351.84134079,0.00022739,4]